Workbook

Sheet Sheet1
A1: 肥东县八斗镇2023年公开招聘村级后备干部考生面试成绩及总成绩
A2: 序号 | B2: 岗位名称 | C2: 考场号 | D2: 准考证号 | E2: 笔试成绩 | F2: 抽签号 | G2: 面试成绩 | H2: 总成绩 | I2: 备注
A3: 1 | B3: 综合管理岗02-23111002 | C3: 第一考场 | D3: 202311250114 | E3: 77.6 | F3: 02-12 | G3: 83.05 | H3: =E3*0.5+G3*0.5 -> 80.33
A4: 2 | B4: 综合管理岗01-23111001 | C4: 第一考场 | D4: 202311250116 | E4: 65.6 | F4: 01-12 | G4: 75.98 | H4: =E4*0.5+G4*0.5 -> 70.79
A5: 3 | B5: 综合管理岗02-23111002 | C5: 第一考场 | D5: 202311250120 | E5: 76.8 | F5: 02-11 | G5: 78.93 | H5: =E5*0.5+G5*0.5 -> 77.87
A6: 4 | B6: 综合管理岗02-23111002 | C6: 第一考场 | D6: 202311250123 | E6: 76.1 | F6: 02-06 | G6: 73.49 | H6: =E6*0.5+G6*0.5 -> 74.80
A7: 5 | B7: 综合管理岗01-23111001 | C7: 第一考场 | D7: 202311250127 | E7: 78.7 | F7: 缺考 | G7: 缺考 | H7: 缺考 | I7: 缺考
A8: 6 | B8: 综合管理岗01-23111001 | C8: 第二考场 | D8: 202311250211 | E8: 66 | F8: 01-08 | G8: 74.57 | H8: =E8*0.5+G8*0.5 -> 70.29
A9: 7 | B9: 综合管理岗02-23111002 | C9: 第二考场 | D9: 202311250214 | E9: 77.1 | F9: 02-14 | G9: 81.54 | H9: =E9*0.5+G9*0.5 -> 79.32
A10: 8 | B10: 综合管理岗02-23111002 | C10: 第二考场 | D10: 202311250215 | E10: 70.9 | F10: 02-05 | G10: 85.15 | H10: =E10*0.5+G10*0.5 -> 78.03
A11: 9 | B11: 综合管理岗01-23111001 | C11: 第三考场 | D11: 202311250311 | E11: 72.2 | F11: 01-05 | G11: 73.95 | H11: =E11*0.5+G11*0.5 -> 73.08
A12: 10 | B12: 综合管理岗01-23111001 | C12: 第三考场 | D12: 202311250314 | E12: 72.5 | F12: 01-07 | G12: 75.22 | H12: =E12*0.5+G12*0.5 -> 73.86
A13: 11 | B13: 综合管理岗01-23111001 | C13: 第三考场 | D13: 202311250325 | E13: 70.8 | F13: 01-03 | G13: 75.28 | H13: =E13*0.5+G13*0.5 -> 73.04
A14: 12 | B14: 综合管理岗01-23111001 | C14: 第三考场 | D14: 202311250327 | E14: 70.8 | F14: 01-10 | G14: 83.23 | H14: =E14*0.5+G14*0.5 -> 77.02
A15: 13 | B15: 综合管理岗02-23111002 | C15: 第四考场 | D15: 202311250413 | E15: 69.8 | F15: 02-03 | G15: 75.85 | H15: =E15*0.5+G15*0.5 -> 72.83
A16: 14 | B16: 综合管理岗02-23111002 | C16: 第四考场 | D16: 202311250419 | E16: 81.5 | F16: 02-07 | G16: 75.07 | H16: =E16*0.5+G16*0.5 -> 78.29
A17: 15 | B17: 综合管理岗02-23111002 | C17: 第四考场 | D17: 202311250428 | E17: 71.9 | F17: 02-04 | G17: 72.85 | H17: =E17*0.5+G17*0.5 -> 72.38
A18: 16 | B18: 综合管理岗02-23111002 | C18: 第四考场 | D18: 202311250430 | E18: 75.2 | F18: 02-13 | G18: 71.58 | H18: =E18*0.5+G18*0.5 -> 73.39
A19: 17 | B19: 综合管理岗01-23111001 | C19: 第五考场 | D19: 202311250502 | E19: 67.8 | F19: 01-04 | G19: 74.58 | H19: =E19*0.5+G19*0.5 -> 71.19
A20: 18 | B20: 综合管理岗01-23111001 | C20: 第五考场 | D20: 202311250505 | E20: 69.9 | F20: 01-06 | G20: 71.33 | H20: =E20*0.5+G20*0.5 -> 70.62
A21: 19 | B21: 综合管理岗01-23111001 | C21: 第五考场 | D21: 202311250507 | E21: 68.7 | F21: 01-09 | G21: 74.87 | H21: =E21*0.5+G21*0.5 -> 71.79
A22: 20 | B22: 综合管理岗01-23111001 | C22: 第五考场 | D22: 202311250513 | E22: 76.2 | F22: 01-11 | G22: 78.20 | H22: =E22*0.5+G22*0.5 -> 77.20
A23: 21 | B23: 综合管理岗01-23111001 | C23: 第七考场 | D23: 202311250703 | E23: 67.5 | F23: 01-02 | G23: 74.64 | H23: =E23*0.5+G23*0.5 -> 71.07
A24: 22 | B24: 综合管理岗02-23111002 | C24: 第七考场 | D24: 202311250704 | E24: 69.7 | F24: 02-10 | G24: 76.15 | H24: =E24*0.5+G24*0.5 -> 72.93
A25: 23 | B25: 综合管理岗02-23111002 | C25: 第七考场 | D25: 202311250710 | E25: 70.1 | F25: 02-09 | G25: 70.14 | H25: =E25*0.5+G25*0.5 -> 70.12
A26: 24 | B26: 综合管理岗02-23111002 | C26: 第七考场 | D26: 202311250719 | E26: 71 | F26: 02-01 | G26: 69 | H26: =E26*0.5+G26*0.5 -> 70.00
A27: 25 | B27: 综合管理岗01-23111001 | C27: 第七考场 | D27: 202311250721 | E27: 71.8 | F27: 01-01 | G27: 74.33 | H27: =E27*0.5+G27*0.5 -> 73.07
A28: 26 | B28: 综合管理岗02-23111002 | C28: 第七考场 | D28: 202311250723 | E28: 71.7 | F28: 02-02 | G28: 72.51 | H28: =E28*0.5+G28*0.5 -> 72.11
A29: 27 | B29: 综合管理岗02-23111002 | C29: 第八考场 | D29: 202311250816 | E29: 72.8 | F29: 02-15 | G29: 76.21 | H29: =E29*0.5+G29*0.5 -> 74.51
A30: 28 | B30: 综合管理岗02-23111002 | C30: 第八考场 | D30: 202311250817 | E30: 72 | F30: 02-08 | G30: 75.22 | H30: =E30*0.5+G30*0.5 -> 73.61
